[Event "*** Titled Tuesday 3|2 Blitz"]
[Site "Chess.com"]
[Date "2015.12.01"]
[Round "4"]
[White "AvitalBor"]
[Black "spectralsoul"]
[Result "0-1"]
[WhiteElo "2343"]
[BlackElo "2483"]
[TimeControl "180+2"]
[EndTime "11:47:24 PST"]
[Termination "spectralsoul won by resignation"]

1. e4 {[%clk 0:03:01.9]} 1... d6 {[%clk 0:02:59.9]} 2. d4 {[%clk 0:03:01.9]}
2... Nf6 {[%clk 0:03:00.1]} 3. Bd3 {[%clk 0:03:03.4]} 3... e5 {[%clk 0:03:00.5]}
4. c3 {[%clk 0:03:03.4]} 4... Nbd7 {[%clk 0:02:59.8]} 5. Nf3 {[%clk 0:03:03.5]}
5... Be7 {[%clk 0:03:00.5]} 6. O-O {[%clk 0:03:02.6]} 6... O-O {[%clk
0:03:01.5]} 7. h3 {[%clk 0:03:03]} 7... c6 {[%clk 0:03:02.5]} 8. a4 {[%clk
0:03:04.1]} 8... h6 {[%clk 0:03:01]} 9. Na3 {[%clk 0:03:04.5]} 9... Re8 {[%clk
0:03:01.7]} 10. Re1 {[%clk 0:03:00.7]} 10... Bf8 {[%clk 0:03:02.4]} 11. Nc4
{[%clk 0:03:01]} 11... exd4 {[%clk 0:02:54]} 12. cxd4 {[%clk 0:03:01.7]} 12...
d5 {[%clk 0:02:54.7]} 13. exd5 {[%clk 0:03:03.6]} 13... Rxe1+ {[%clk 0:02:52.7]}
14. Qxe1 {[%clk 0:03:05.5]} 14... Nxd5 {[%clk 0:02:53.3]} 15. Nfe5 {[%clk
0:03:01.4]} 15... Nxe5 {[%clk 0:02:46]} 16. dxe5 {[%clk 0:03:03.3]} 16... Nb4
{[%clk 0:02:47.4]} 17. Bb1 {[%clk 0:02:58.2]} 17... Be6 {[%clk 0:02:46.8]} 18.
Qe4 {[%clk 0:02:47.2]} 18... g6 {[%clk 0:02:40.3]} 19. Nd6 {[%clk 0:02:47.6]}
19... Bxd6 {[%clk 0:02:30.3]} 20. exd6 {[%clk 0:02:49.5]} 20... Qxd6 {[%clk
0:02:32]} 21. Bxh6 {[%clk 0:02:49.5]} 21... Bf5 {[%clk 0:02:19.7]} 22. Qh4
{[%clk 0:02:44]} 22... Bxb1 {[%clk 0:02:07.9]} 23. Rxb1 {[%clk 0:02:45.9]} 23...
Nd5 {[%clk 0:02:07.6]} 24. Re1 {[%clk 0:02:41.9]} 24... Qd7 {[%clk 0:01:59.7]}
25. Qd4 {[%clk 0:02:39]} 25... f6 {[%clk 0:02:00.4]} 26. Bd2 {[%clk 0:02:31.7]}
26... a6 {[%clk 0:01:54.9]} 27. Re4 {[%clk 0:02:29.8]} 27... Re8 {[%clk
0:01:55]} 28. Rh4 {[%clk 0:02:09.6]} 28... Qf5 {[%clk 0:01:29]} 29. Bc3 {[%clk
0:02:03.9]} 29... Re2 {[%clk 0:01:20.7]} 30. Qa7 {[%clk 0:02:00.4]} 30... Qc8
{[%clk 0:01:08.3]} 31. Qc5 {[%clk 0:01:46.2]} 31... Qf5 {[%clk 0:00:57.8]} 32.
Qd6 {[%clk 0:01:46.6]} 32... Qxf2+ {[%clk 0:00:55.2]} 0-1

[Event "*** Titled Tuesday 3|2 Blitz"]
[Site "Chess.com"]
[Date "2015.12.01"]
[Round "4"]
[White "ArnaudovP"]
[Black "dawnrule"]
[Result "1-0"]
[WhiteElo "2327"]
[BlackElo "2215"]
[TimeControl "180+2"]
[EndTime "11:47:27 PST"]
[Termination "ArnaudovP won by resignation"]

1. d4 {[%clk 0:03:01.6]} 1... Nf6 {[%clk 0:03:00.2]} 2. c4 {[%clk 0:03:03]} 2...
e6 {[%clk 0:03:00]} 3. Nc3 {[%clk 0:03:03.4]} 3... d5 {[%clk 0:02:59.1]} 4. cxd5
{[%clk 0:03:00.1]} 4... exd5 {[%clk 0:02:58.4]} 5. Bg5 {[%clk 0:03:01.3]} 5...
Be7 {[%clk 0:02:57.2]} 6. e3 {[%clk 0:03:02.1]} 6... O-O {[%clk 0:02:57.3]} 7.
Bd3 {[%clk 0:03:02.8]} 7... Be6 {[%clk 0:02:58.1]} 8. Nge2 {[%clk 0:03:00.4]}
8... Nbd7 {[%clk 0:02:58.8]} 9. O-O {[%clk 0:02:59.4]} 9... h6 {[%clk 0:02:59]}
10. Bh4 {[%clk 0:02:59.9]} 10... c5 {[%clk 0:02:56.3]} 11. Rc1 {[%clk
0:02:59.1]} 11... Rc8 {[%clk 0:02:47]} 12. dxc5 {[%clk 0:02:59.1]} 12... Nxc5
{[%clk 0:02:45.1]} 13. Bb1 {[%clk 0:02:59.6]} 13... Re8 {[%clk 0:02:09.5]} 14.
Nd4 {[%clk 0:02:58]} 14... Qd7 {[%clk 0:01:54.9]} 15. Nxe6 {[%clk 0:02:35.9]}
15... fxe6 {[%clk 0:01:46.4]} 16. Qc2 {[%clk 0:02:33.5]} 16... Nce4 {[%clk
0:01:39]} 17. f3 {[%clk 0:02:31.4]} 17... Nxc3 {[%clk 0:01:36.2]} 18. Bxf6
{[%clk 0:02:22.7]} 18... Ne4 {[%clk 0:01:28]} 19. Bc3 {[%clk 0:02:23.4]} 19...
Nxc3 {[%clk 0:01:22.5]} 20. Qh7+ {[%clk 0:02:23.4]} 20... Kf8 {[%clk 0:01:22.9]}
21. Rxc3 {[%clk 0:02:14.4]} 21... Rxc3 {[%clk 0:01:22]} 22. Bg6 {[%clk
0:02:14.6]} 22... Bc5 {[%clk 0:01:12.1]} 23. Qh8+ {[%clk 0:02:12]} 23... Ke7
{[%clk 0:01:11.3]} 24. Qxg7+ {[%clk 0:02:12.9]} 24... Kd6 {[%clk 0:01:07.2]} 25.
Qxd7+ {[%clk 0:02:13.8]} 25... Kxd7 {[%clk 0:01:08.2]} 26. Bxe8+ {[%clk
0:02:15.3]} 26... Kxe8 {[%clk 0:01:09.9]} 27. bxc3 {[%clk 0:02:16.3]} 27...
Bxe3+ {[%clk 0:01:11.7]} 28. Kh1 {[%clk 0:02:17.3]} 28... Bd2 {[%clk 0:01:11.5]}
29. Rb1 {[%clk 0:02:10.5]} 29... b6 {[%clk 0:01:02.9]} 30. Rb3 {[%clk
0:02:11.2]} 30... Kd7 {[%clk 0:01:03.3]} 31. Kg1 {[%clk 0:02:12.2]} 31... Kc6
{[%clk 0:01:04.2]} 32. Kf1 {[%clk 0:02:12.6]} 32... a5 {[%clk 0:01:03.6]} 33.
Ke2 {[%clk 0:02:13.5]} 33... Bf4 {[%clk 0:01:04.6]} 34. g3 {[%clk 0:02:14.3]}
34... Be5 {[%clk 0:01:04.5]} 35. f4 {[%clk 0:02:15.4]} 35... Bf6 {[%clk
0:01:05.6]} 36. Kd3 {[%clk 0:02:16.5]} 36... Kc5 {[%clk 0:01:06.2]} 37. Rb1
{[%clk 0:02:17.4]} 37... b5 {[%clk 0:01:07.3]} 38. Re1 {[%clk 0:02:17.7]} 38...
e5 {[%clk 0:01:06]} 39. fxe5 {[%clk 0:02:17.7]} 39... Be7 {[%clk 0:01:07.9]} 40.
e6 {[%clk 0:02:18.5]} 40... a4 {[%clk 0:01:07.5]} 41. Re5 {[%clk 0:02:17.9]}
41... Kd6 {[%clk 0:01:04.5]} 42. Rh5 {[%clk 0:02:18.6]} 42... Bg5 {[%clk
0:01:00.6]} 43. h4 {[%clk 0:02:19]} 43... Bc1 {[%clk 0:01:01.3]} 44. e7 {[%clk
0:02:20]} 44... Kxe7 {[%clk 0:01:01.3]} 45. Rxd5 {[%clk 0:02:20.6]} 1-0

[Event "*** Titled Tuesday 3|2 Blitz"]
[Site "Chess.com"]
[Date "2015.12.01"]
[Round "4"]
[White "amaidel"]
[Black "Gabrielian_Artur"]
[Result "0-1"]
[WhiteElo "2386"]
[BlackElo "2528"]
[TimeControl "180+2"]
[EndTime "11:47:41 PST"]
[Termination "Gabrielian_Artur won by resignation"]

1. Nf3 {[%clk 0:03:01.9]} 1... Nf6 {[%clk 0:02:59.8]} 2. d4 {[%clk 0:03:02.7]}
2... g6 {[%clk 0:03:00.8]} 3. Bf4 {[%clk 0:03:02.1]} 3... Bg7 {[%clk 0:03:01.9]}
4. h3 {[%clk 0:03:02.9]} 4... O-O {[%clk 0:03:02.8]} 5. c3 {[%clk 0:03:03.7]}
5... d6 {[%clk 0:03:04.2]} 6. e3 {[%clk 0:03:04.6]} 6... c5 {[%clk 0:03:05.4]}
7. Be2 {[%clk 0:03:05.1]} 7... Nc6 {[%clk 0:03:00.4]} 8. O-O {[%clk 0:03:05.4]}
8... b6 {[%clk 0:03:01.2]} 9. Nbd2 {[%clk 0:03:04.8]} 9... Bb7 {[%clk
0:03:02.1]} 10. Bh2 {[%clk 0:03:05.3]} 10... cxd4 {[%clk 0:02:59.9]} 11. cxd4
{[%clk 0:03:05]} 11... Rc8 {[%clk 0:02:57.4]} 12. Rc1 {[%clk 0:03:05.2]} 12...
Qd7 {[%clk 0:02:58.1]} 13. a3 {[%clk 0:03:05.3]} 13... Nd5 {[%clk 0:02:54]} 14.
Qa4 {[%clk 0:02:59.1]} 14... Rfd8 {[%clk 0:02:52.3]} 15. Bb5 {[%clk 0:02:55.5]}
15... a6 {[%clk 0:02:51.6]} 16. Bd3 {[%clk 0:02:33.2]} 16... Nxd4 {[%clk
0:02:44.2]} 17. Qxd7 {[%clk 0:02:33.3]} 17... Nxf3+ {[%clk 0:02:44.6]} 18. Nxf3
{[%clk 0:02:34]} 18... Rxd7 {[%clk 0:02:45.2]} 19. Rxc8+ {[%clk 0:02:33.3]}
19... Bxc8 {[%clk 0:02:46.3]} 20. e4 {[%clk 0:02:31.3]} 20... Nc7 {[%clk
0:02:36.9]} 21. b3 {[%clk 0:02:28.8]} 21... Bb7 {[%clk 0:02:36.5]} 22. a4 {[%clk
0:02:28.2]} 22... Ne6 {[%clk 0:02:35.6]} 23. b4 {[%clk 0:02:07]} 23... Bc3
{[%clk 0:02:35.7]} 24. Rb1 {[%clk 0:02:05.2]} 24... Rc7 {[%clk 0:02:31.2]} 25.
Kf1 {[%clk 0:02:04.8]} 25... a5 {[%clk 0:02:30.9]} 26. bxa5 {[%clk 0:02:02.2]}
26... Bxa5 {[%clk 0:02:31.3]} 27. e5 {[%clk 0:01:56.7]} 27... Rc3 {[%clk
0:02:28]} 28. exd6 {[%clk 0:01:49.9]} 28... Rxd3 {[%clk 0:02:07.7]} 29. dxe7
{[%clk 0:01:50.2]} 29... Ng7 {[%clk 0:01:59.6]} 30. Ne5 {[%clk 0:01:36.9]} 30...
Rd5 {[%clk 0:01:59.5]} 31. Ng4 {[%clk 0:01:36.2]} 31... Ne8 {[%clk 0:01:59.2]}
32. Be5 {[%clk 0:01:30.9]} 32... f6 {[%clk 0:01:45.2]} 33. Bxf6 {[%clk
0:01:17.3]} 33... Kf7 {[%clk 0:01:41.7]} 34. Bh4 {[%clk 0:01:14]} 34... g5
{[%clk 0:01:40.3]} 35. Bg3 {[%clk 0:01:09.8]} 35... Kxe7 {[%clk 0:01:39.7]} 36.
Re1+ {[%clk 0:01:07.1]} 36... Bxe1 {[%clk 0:01:40]} 0-1

[Event "*** Titled Tuesday 3|2 Blitz"]
[Site "Chess.com"]
[Date "2015.12.01"]
[Round "4"]
[White "DaPazz"]
[Black "alturas_pacificas"]
[Result "0-1"]
[WhiteElo "1819"]
[BlackElo "2113"]
[TimeControl "180+2"]
[EndTime "11:48:17 PST"]
[Termination "alturas_pacificas won on time"]

1. d4 {[%clk 0:02:51.2]} 1... d5 {[%clk 0:03:01]} 2. c4 {[%clk 0:02:50.8]} 2...
c6 {[%clk 0:03:02.2]} 3. Nc3 {[%clk 0:02:51.1]} 3... Nf6 {[%clk 0:03:02.8]} 4.
Nf3 {[%clk 0:02:51.6]} 4... e6 {[%clk 0:03:03.9]} 5. cxd5 {[%clk 0:02:51.1]}
5... exd5 {[%clk 0:03:04.5]} 6. Bf4 {[%clk 0:02:51.3]} 6... Bf5 {[%clk
0:03:05.2]} 7. e3 {[%clk 0:02:51.3]} 7... Nbd7 {[%clk 0:03:06.1]} 8. Bd3 {[%clk
0:02:48.7]} 8... Bxd3 {[%clk 0:03:06.8]} 9. Qxd3 {[%clk 0:02:48.4]} 9... Be7
{[%clk 0:03:08.4]} 10. Ne5 {[%clk 0:02:46.6]} 10... O-O {[%clk 0:03:08.9]} 11.
Nxd7 {[%clk 0:02:45]} 11... Qxd7 {[%clk 0:03:09.7]} 12. h3 {[%clk 0:02:45.7]}
12... Rfe8 {[%clk 0:03:10.5]} 13. Bh2 {[%clk 0:02:45.2]} 13... Bd6 {[%clk
0:03:11.5]} 14. Bxd6 {[%clk 0:02:42.9]} 14... Qxd6 {[%clk 0:03:13.4]} 15. a3
{[%clk 0:02:43.5]} 15... Ne4 {[%clk 0:03:13.3]} 16. Nxe4 {[%clk 0:02:41.7]}
16... Rxe4 {[%clk 0:03:13.9]} 17. b4 {[%clk 0:02:41]} 17... a6 {[%clk
0:03:13.9]} 18. O-O {[%clk 0:02:33]} 18... Rf8 {[%clk 0:03:14]} 19. f3 {[%clk
0:02:32.2]} 19... Re7 {[%clk 0:03:14.2]} 20. e4 {[%clk 0:02:32.3]} 20... dxe4
{[%clk 0:03:14.9]} 21. fxe4 {[%clk 0:02:31.5]} 21... Rd7 {[%clk 0:03:12.6]} 22.
Rad1 {[%clk 0:02:30.1]} 22... Rfd8 {[%clk 0:03:13.2]} 23. Qc4 {[%clk 0:02:26.1]}
23... Qe6 {[%clk 0:03:12.8]} 24. d5 {[%clk 0:01:57]} 24... cxd5 {[%clk
0:03:13.4]} 25. Rxd5 {[%clk 0:01:54.8]} 25... Rxd5 {[%clk 0:03:14.2]} 26. exd5
{[%clk 0:01:55.2]} 26... Qxd5 {[%clk 0:03:15.7]} 27. Qxd5 {[%clk 0:01:54]} 27...
Rxd5 {[%clk 0:03:17]} 28. Rc1 {[%clk 0:01:54.5]} 28... g6 {[%clk 0:03:15.9]} 29.
Rc7 {[%clk 0:01:52.6]} 29... Rb5 {[%clk 0:03:16.7]} 30. Kf2 {[%clk 0:01:52.1]}
30... a5 {[%clk 0:03:15.4]} 31. bxa5 {[%clk 0:01:51.7]} 31... Rxa5 {[%clk
0:03:16.9]} 32. Rxb7 {[%clk 0:01:51.8]} 32... Rxa3 {[%clk 0:03:18.4]} 33. Rb8+
{[%clk 0:01:46.4]} 33... Kg7 {[%clk 0:03:16.9]} 34. Rb7 {[%clk 0:01:47.8]} 34...
h5 {[%clk 0:03:17.6]} 35. g3 {[%clk 0:01:47.1]} 35... g5 {[%clk 0:03:17.4]} 36.
Kg2 {[%clk 0:01:43.7]} 36... Kg6 {[%clk 0:03:17.7]} 37. Rb5 {[%clk 0:01:41]}
37... f6 {[%clk 0:03:18.8]} 38. Rc5 {[%clk 0:01:40.4]} 38... Ra2+ {[%clk
0:03:19.3]} 39. Kf3 {[%clk 0:01:39.9]} 39... Rh2 {[%clk 0:03:20.6]} 40. h4
{[%clk 0:01:38.8]} 40... gxh4 {[%clk 0:03:21.5]} 41. gxh4 {[%clk 0:01:39.3]}
41... Rxh4 {[%clk 0:03:23]} 42. Kg3 {[%clk 0:01:40]} 42... Ra4 {[%clk
0:03:24.2]} 43. Kh3 {[%clk 0:01:39]} 43... f5 {[%clk 0:03:22.2]} 44. Rc8 {[%clk
0:01:36.4]} 44... Kg5 {[%clk 0:03:22.9]} 45. Rg8+ {[%clk 0:01:33.9]} 45... Kf4
{[%clk 0:03:24.3]} 46. Kg2 {[%clk 0:01:33.7]} 46... Ra2+ {[%clk 0:03:25]} 47.
Kf1 {[%clk 0:01:32]} 47... Kf3 {[%clk 0:03:25.9]} 48. Ke1 {[%clk 0:01:32.4]}
48... Ra1+ {[%clk 0:03:25.1]} 49. Kd2 {[%clk 0:01:31.7]} 49... f4 {[%clk
0:03:26.3]} 50. Rg5 {[%clk 0:01:30.6]} 50... Rh1 {[%clk 0:03:26.5]} 51. Ra5
{[%clk 0:01:29.1]} 51... Rh2+ {[%clk 0:03:24.5]} 52. Ke1 {[%clk 0:01:29.3]}
52... Rh1+ {[%clk 0:03:25.4]} 53. Kd2 {[%clk 0:01:29.4]} 53... h4 {[%clk
0:03:26.5]} 54. Rg5 {[%clk 0:01:23.7]} 54... h3 {[%clk 0:03:27]} 55. Rh5 {[%clk
0:01:23.3]} 55... h2 {[%clk 0:03:25.9]} 0-1

[Event "*** Titled Tuesday 3|2 Blitz"]
[Site "Chess.com"]
[Date "2015.12.01"]
[Round "4"]
[White "Gergo85"]
[Black "jefferyx"]
[Result "0-1"]
[WhiteElo "2339"]
[BlackElo "2575"]
[TimeControl "180+2"]
[EndTime "11:48:39 PST"]
[Termination "jefferyx won by checkmate"]

1. e4 {[%clk 0:03:01.9]} 1... a6 {[%clk 0:03:00.6]} 2. Nf3 {[%clk 0:03:02.8]}
2... b5 {[%clk 0:03:01.7]} 3. d4 {[%clk 0:03:04]} 3... Bb7 {[%clk 0:03:03.3]} 4.
Bd3 {[%clk 0:03:05.2]} 4... e6 {[%clk 0:03:04.9]} 5. a4 {[%clk 0:03:05.5]} 5...
b4 {[%clk 0:03:05]} 6. c3 {[%clk 0:03:07]} 6... Nf6 {[%clk 0:03:06.1]} 7. e5
{[%clk 0:03:07.5]} 7... Nd5 {[%clk 0:03:06.6]} 8. c4 {[%clk 0:03:08.3]} 8... Nb6
{[%clk 0:03:07.9]} 9. Nbd2 {[%clk 0:03:02.3]} 9... a5 {[%clk 0:03:08.2]} 10. Qe2
{[%clk 0:02:57.1]} 10... d5 {[%clk 0:03:05.8]} 11. c5 {[%clk 0:02:57.5]} 11...
N6d7 {[%clk 0:03:03.2]} 12. Nb3 {[%clk 0:02:51.2]} 12... Be7 {[%clk 0:02:59.8]}
13. O-O {[%clk 0:02:50.6]} 13... Ba6 {[%clk 0:02:50.4]} 14. Bxa6 {[%clk
0:02:43.9]} 14... Rxa6 {[%clk 0:02:52.3]} 15. Qb5 {[%clk 0:02:34.8]} 15... O-O
{[%clk 0:02:46.3]} 16. Be3 {[%clk 0:02:25]} 16... f6 {[%clk 0:02:30.1]} 17. exf6
{[%clk 0:02:25.4]} 17... Bxf6 {[%clk 0:02:32]} 18. Rac1 {[%clk 0:02:17.9]} 18...
c6 {[%clk 0:02:32.8]} 19. Qd3 {[%clk 0:02:18.3]} 19... e5 {[%clk 0:02:22.9]} 20.
dxe5 {[%clk 0:02:16.7]} 20... Nxe5 {[%clk 0:02:24.8]} 21. Nxe5 {[%clk
0:02:16.8]} 21... Bxe5 {[%clk 0:02:26.7]} 22. Bd4 {[%clk 0:02:01.5]} 22... Qc7
{[%clk 0:01:25.3]} 23. g3 {[%clk 0:01:50.2]} 23... Ra8 {[%clk 0:01:21.3]} 24.
Rce1 {[%clk 0:01:44.6]} 24... Nd7 {[%clk 0:01:21.6]} 25. f4 {[%clk 0:01:21.7]}
25... Bxd4+ {[%clk 0:01:22.7]} 26. Qxd4 {[%clk 0:01:23.6]} 26... Rae8 {[%clk
0:01:24.2]} 27. Kg2 {[%clk 0:01:01.2]} 27... Qa7 {[%clk 0:01:22.1]} 28. Kf2
{[%clk 0:00:53.4]} 28... Nf6 {[%clk 0:01:21]} 29. Rxe8 {[%clk 0:00:51.9]} 29...
Rxe8 {[%clk 0:01:22.9]} 30. Re1 {[%clk 0:00:53.2]} 30... Ng4+ {[%clk 0:01:22.6]}
31. Kf3 {[%clk 0:00:36.8]} 31... Nxh2+ {[%clk 0:01:23.4]} 32. Kg2 {[%clk
0:00:38.2]} 32... Rxe1 {[%clk 0:01:23.7]} 33. Kxh2 {[%clk 0:00:39.8]} 33... Re2+
{[%clk 0:01:23]} 34. Kg1 {[%clk 0:00:40]} 34... Qe7 {[%clk 0:01:18.6]} 35. Nxa5
{[%clk 0:00:39.4]} 35... Re1+ {[%clk 0:00:54.1]} 36. Kg2 {[%clk 0:00:39.6]}
36... Qe2+ {[%clk 0:00:55.8]} 37. Qf2 {[%clk 0:00:40.3]} 37... Qe4+ {[%clk
0:00:57.4]} 38. Kh3 {[%clk 0:00:38.6]} 38... Rh1+ {[%clk 0:00:58.7]} 39. Kg4
{[%clk 0:00:40]} 39... h5+ {[%clk 0:01:00.2]} 40. Kg5 {[%clk 0:00:41.2]} 40...
Qe7+ {[%clk 0:01:00.7]} 41. Kf5 {[%clk 0:00:42.3]} 41... Qf6# {[%clk 0:01:02.4]}
0-1

[Event "*** Titled Tuesday 3|2 Blitz"]
[Site "Chess.com"]
[Date "2015.12.01"]
[Round "4"]
[White "Rickstereo"]
[Black "rikyshi"]
[Result "1-0"]
[WhiteElo "2224"]
[BlackElo "2123"]
[TimeControl "180+2"]
[EndTime "11:49:04 PST"]
[Termination "Rickstereo won by resignation"]

1. c4 {[%clk 0:03:01.9]} 1... Nf6 {[%clk 0:02:58]} 2. g3 {[%clk 0:03:01.6]} 2...
e6 {[%clk 0:02:56.6]} 3. Bg2 {[%clk 0:03:01.8]} 3... d5 {[%clk 0:02:57.5]} 4.
Nf3 {[%clk 0:03:02.3]} 4... c6 {[%clk 0:02:58.5]} 5. b3 {[%clk 0:03:02.1]} 5...
Be7 {[%clk 0:02:59.5]} 6. O-O {[%clk 0:03:02.3]} 6... O-O {[%clk 0:02:59.1]} 7.
Bb2 {[%clk 0:03:02.8]} 7... Nbd7 {[%clk 0:03:00.2]} 8. d3 {[%clk 0:03:03.6]}
8... a5 {[%clk 0:03:01.1]} 9. a3 {[%clk 0:03:02.6]} 9... b5 {[%clk 0:03:02]} 10.
Nbd2 {[%clk 0:03:02.8]} 10... Bb7 {[%clk 0:03:00.8]} 11. e4 {[%clk 0:02:58.7]}
11... Nc5 {[%clk 0:02:58.9]} 12. e5 {[%clk 0:02:58]} 12... Nfd7 {[%clk
0:02:42.1]} 13. Qc2 {[%clk 0:02:49.9]} 13... bxc4 {[%clk 0:02:40.7]} 14. dxc4
{[%clk 0:02:47.9]} 14... Ba6 {[%clk 0:02:34.8]} 15. Rfd1 {[%clk 0:02:47.1]}
15... Qc7 {[%clk 0:02:34.3]} 16. b4 {[%clk 0:02:42.9]} 16... Nb7 {[%clk
0:01:53]} 17. cxd5 {[%clk 0:02:31.9]} 17... exd5 {[%clk 0:01:50.3]} 18. Rac1
{[%clk 0:02:05.6]} 18... axb4 {[%clk 0:01:49.7]} 19. axb4 {[%clk 0:02:05.5]}
19... Bb5 {[%clk 0:01:49.6]} 20. Qf5 {[%clk 0:01:38.6]} 20... Bxb4 {[%clk
0:01:40.4]} 21. Ng5 {[%clk 0:01:29.9]} 21... g6 {[%clk 0:01:35.5]} 22. Qh3
{[%clk 0:01:27.3]} 22... h5 {[%clk 0:01:27.9]} 23. e6 {[%clk 0:01:27.1]} 23...
Ne5 {[%clk 0:01:19.8]} 24. exf7+ {[%clk 0:01:20.6]} 24... Nxf7 {[%clk
0:01:20.6]} 25. Bxd5 {[%clk 0:01:15.7]} 25... Qd6 {[%clk 0:01:11]} 26. Nde4
{[%clk 0:01:06.1]} 26... Qe7 {[%clk 0:00:54.8]} 27. Nf6+ {[%clk 0:01:00.9]}
27... Qxf6 {[%clk 0:00:53.9]} 28. Bxf6 {[%clk 0:01:00]} 28... cxd5 {[%clk
0:00:55.3]} 29. Rxd5 {[%clk 0:00:49.5]} 29... Nxg5 {[%clk 0:00:49.7]} 30. Rxg5
{[%clk 0:00:40.4]} 30... Rxf6 {[%clk 0:00:49.9]} 31. Rxb5 {[%clk 0:00:39.9]}
31... Bc5 {[%clk 0:00:44.2]} 32. Rxb7 {[%clk 0:00:39.9]} 32... Rxf2 {[%clk
0:00:40.8]} 33. Rxc5 {[%clk 0:00:37.2]} 33... Re2 {[%clk 0:00:39.7]} 34. Rc8+
{[%clk 0:00:36.9]} 34... Re8 {[%clk 0:00:38.5]} 35. Qe6+ {[%clk 0:00:34.7]} 1-0

[Event "*** Titled Tuesday 3|2 Blitz"]
[Site "Chess.com"]
[Date "2015.12.01"]
[Round "4"]
[White "Iball95"]
[Black "MinhGTrAn"]
[Result "0-1"]
[WhiteElo "2421"]
[BlackElo "2623"]
[TimeControl "180+2"]
[EndTime "11:49:33 PST"]
[Termination "MinhGTrAn won by resignation"]

1. e4 {[%clk 0:02:55.5]} 1... c5 {[%clk 0:03:00]} 2. Nf3 {[%clk 0:02:56.4]} 2...
d6 {[%clk 0:03:01.1]} 3. Bb5+ {[%clk 0:02:57.1]} 3... Bd7 {[%clk 0:03:01.9]} 4.
Bxd7+ {[%clk 0:02:58.1]} 4... Qxd7 {[%clk 0:03:03.8]} 5. c4 {[%clk 0:02:59]}
5... Nf6 {[%clk 0:03:03.9]} 6. Nc3 {[%clk 0:03:00.1]} 6... e6 {[%clk 0:03:04.1]}
7. O-O {[%clk 0:02:58.6]} 7... Be7 {[%clk 0:03:04.1]} 8. d4 {[%clk 0:02:59.9]}
8... cxd4 {[%clk 0:03:05.7]} 9. Nxd4 {[%clk 0:03:01.6]} 9... O-O {[%clk
0:03:07.4]} 10. Be3 {[%clk 0:03:00.3]} 10... a6 {[%clk 0:03:08.3]} 11. Rc1
{[%clk 0:02:59.1]} 11... Nc6 {[%clk 0:03:07.5]} 12. f3 {[%clk 0:02:55.2]} 12...
Bd8 {[%clk 0:03:07.5]} 13. Qd2 {[%clk 0:02:55.6]} 13... Ba5 {[%clk 0:03:08.1]}
14. Rfd1 {[%clk 0:02:54.2]} 14... Rfd8 {[%clk 0:03:04.6]} 15. Nb3 {[%clk
0:02:53.7]} 15... Bc7 {[%clk 0:03:03.7]} 16. Qf2 {[%clk 0:02:45.4]} 16... Qe7
{[%clk 0:03:00.6]} 17. Nd4 {[%clk 0:02:44.2]} 17... Ne5 {[%clk 0:02:58]} 18. b3
{[%clk 0:02:44.6]} 18... Rac8 {[%clk 0:02:59]} 19. Rd2 {[%clk 0:02:34.9]} 19...
Ba5 {[%clk 0:02:59.9]} 20. Rdd1 {[%clk 0:02:35]} 20... b5 {[%clk 0:02:57.5]} 21.
Nde2 {[%clk 0:01:51.3]} 21... bxc4 {[%clk 0:02:55.9]} 22. Bb6 {[%clk 0:01:48]}
22... Nd3 {[%clk 0:01:59.1]} 23. Rxd3 {[%clk 0:01:47.8]} 23... Bxb6 {[%clk
0:01:56.7]} 24. Re3 {[%clk 0:01:27.5]} 24... cxb3 {[%clk 0:01:53.2]} 25. axb3
{[%clk 0:01:28.1]} 25... Qa7 {[%clk 0:01:47.4]} 26. Nd1 {[%clk 0:01:24.1]} 26...
Rxc1 {[%clk 0:01:35.7]} 27. Nxc1 {[%clk 0:01:26]} 27... d5 {[%clk 0:01:37.1]}
28. e5 {[%clk 0:01:16.8]} 28... Nd7 {[%clk 0:01:35.7]} 29. f4 {[%clk 0:01:17.4]}
29... Nc5 {[%clk 0:01:27.8]} 30. g4 {[%clk 0:01:15.5]} 30... Ne4 {[%clk
0:01:26.6]} 31. Qf3 {[%clk 0:01:16.5]} 31... Rc8 {[%clk 0:01:27.1]} 32. Ne2
{[%clk 0:01:12.3]} 32... Nd2 {[%clk 0:01:07.4]} 33. Qh3 {[%clk 0:01:02.8]} 33...
Nxb3 {[%clk 0:01:07.2]} 34. Kg2 {[%clk 0:01:03.7]} 34... Bxe3 {[%clk 0:01:08.5]}
35. Nxe3 {[%clk 0:01:05.6]} 35... a5 {[%clk 0:01:08.2]} 36. f5 {[%clk
0:01:05.5]} 36... Nd4 {[%clk 0:01:03.8]} 37. Nf4 {[%clk 0:01:03.5]} 37... Rc3
{[%clk 0:00:47.5]} 38. f6 {[%clk 0:00:57.7]} 38... Nc2 {[%clk 0:00:44.2]} 39.
Nxe6 {[%clk 0:00:28.8]} 39... Nxe3+ {[%clk 0:00:42.2]} 40. Kf2 {[%clk
0:00:24.6]} 40... Nxg4+ {[%clk 0:00:41.3]} 0-1